[Event "Paul Keres Memorial-Youth 2020"]
[Site "Parnu"]
[Date "2020.07.27"]
[Round "1.6"]
[White "Pedoson, Georg Aleksander"]
[Black "Luik, Ott-Robert"]
[Result "1-0"]
[ECO "A10"]
[WhiteElo "2189"]
[BlackElo "1196"]
[Annotator "ChessBase"]
[PlyCount "67"]
[EventDate "2020.07.27"]
[EventType "swiss"]
[EventCountry "EST"]
[SourceTitle "playchess.com"]
[Source "ChessBase"]
[SourceQuality "1"]
[TimeControl "40/5400+30:900+30"]

1. c4 {[%emt 0:29:32]} g6 {[%emt 0:30:39]} 2. Nc3 {[%emt 0:01:02]} Bg7 {[%emt 0:00:44]} 3. g3 {[%emt 0:00:27]} e6 {[%emt 0:00:26]} 4. Bg2 {[%emt 0:01:10]} Ne7 {[%emt 0:01:09]} 5. d4 {[%emt 0:03:34]} c6 {[%emt 0:02:53]} 6. Nf3 {[%emt 0:06:05]} d5 {[%emt 0:04:58]} 7. cxd5 {[%emt 0:00:43]} exd5 {[%emt 0:00:26]} 8. O-O {[%emt 0:00:48]} Nf5 {[%emt 0:01:01]} 9. Bf4 {[%emt 0:04:18]} Nd7 {[%emt 0:01:50]} 10. g4 {[%emt 0:07:34]} Ne7 {[%emt 0:01:35]} 11. h3 {[%emt 0:00:43]} h5 {[%emt 0:00:44]} 12. e3 {[%emt 0:03:31]} hxg4 {[%emt 0:01:08]} 13. hxg4 {[%emt 0:00:04]} Nf6 {[%emt 0:00:35]} 14. Ne5 {[%emt 0:00:08]} Be6 {[%emt 0:01:39]} 15. b4 {[%emt 0:01:01]} Qc8 {[%emt 0:00:54]} 16. f3 {[%emt 0:01:17]} Nd7 {[%emt 0:00:52]} 17. Nd3 {[%emt 0:00:15]} Nb6 {[%emt 0:01:09]} 18. a4 {[%emt 0:00:56]} Nc4 {[%emt 0:00:21]} 19. b5 {[%emt 0:00:08]} b6 {[%emt 0:01:34]} 20. bxc6 {[%emt 0:00:08]} Nxc6 {[%emt 0:00:28]} 21. Rc1 {[%emt 0:08:17]} Qd7 {[%emt 0:01:16]} 22. Re1 {[%emt 0:01:37]} O-O {[%emt 0:00:10]} 23. Bf1 {[%emt 0:01:18]} Rfd8 {[%emt 0:00:38]} 24. Qe2 {[%emt 0:06:39]} f5 {[%emt 0:00:23]} 25. gxf5 {[%emt 0:06:27]} Bxf5 {[%emt 0:01:50]} 26. Qg2 {[%emt 0:00:13]} Re8 {[%emt 0:00:59]} 27. Nf2 {[%emt 0:00:39]} N6a5 {[%emt 0:01:27]} 28. e4 {[%emt 0:02:01]} dxe4 {[%emt 0:02:43]} 29. fxe4 {[%emt 0:00:04]} Qxd4 {[%emt 0:01:17]} 30. Red1 {[%emt 0:00:14]} Qc5 {[%emt 0:02:39]} 31. exf5 {[%emt 0:00:21]} Ne3 {[%emt 0:01:23]} 32. Bxe3 {[%emt 0:00:10]} Qxe3 {[%emt 0:00:33]} 33. Nd5 {[%emt 0:00:13]} Qc5 {[%emt 0:01:03]} 34. Rxc5 {[%emt 0:00:05]} 1-0

[Event "Paul Keres Memorial-Youth 2020"]
[Site "Parnu"]
[Date "2020.07.27"]
[Round "1.9"]
[White "Schneider, Uku"]
[Black "Golsta, Madara"]
[Result "0-1"]
[ECO "D86"]
[WhiteElo "1081"]
[BlackElo "1903"]
[Annotator "ChessBase"]
[PlyCount "56"]
[EventDate "2020.07.27"]
[EventType "swiss"]
[EventCountry "EST"]
[SourceTitle "playchess.com"]
[Source "ChessBase"]
[SourceQuality "1"]
[TimeControl "40/5400+30:900+30"]

1. d4 {[%emt 0:29:32]} Nf6 {[%emt 0:29:40]} 2. c4 {[%emt 0:00:06]} g6 {[%emt 0:00:08]} 3. Nc3 {[%emt 0:00:06]} d5 {[%emt 0:00:07]} 4. cxd5 {[%emt 0:00:07]} Nxd5 {[%emt 0:00:07]} 5. e4 {[%emt 0:00:08]} Nxc3 {[%emt 0:00:05]} 6. bxc3 {[%emt 0:00:07]} Bg7 {[%emt 0:00:04]} 7. Bd3 {[%emt 0:00:29]} c5 {[%emt 0:00:15]} 8. Ne2 {[%emt 0:00:56]} O-O {[%emt 0:00:29]} 9. Be3 {[%emt 0:00:07]} cxd4 {[%emt 0:04:14]} 10. cxd4 {[%emt 0:00:07]} Nc6 {[%emt 0:00:35]} 11. Bc2 {[%emt 0:03:20]} Qa5+ {[%emt 0:02:59]} 12. Qd2 {[%emt 0:01:52]} Qxd2+ {[%emt 0:01:06]} 13. Kxd2 {[%emt 0:00:10]} Rd8 {[%emt 0:00:05]} 14. Kc3 {[%emt 0:00:07]} Be6 {[%emt 0:01:45]} 15. Rhd1 {[%emt 0:03:17]} Rac8 {[%emt 0:00:30]} 16. Kb2 {[%emt 0:00:34]} Bc4 {[%emt 0:00:10]} 17. Bd3 {[%emt 0:13:33]} Nxd4 {[%emt 0:00:37]} 18. Nxd4 {[%emt 0:00:10]} Bxd4+ {[%emt 0:01:35]} 19. Bxd4 {[%emt 0:00:00]} Rxd4 {[%emt 0:00:00]} 20. Kc3 {[%emt 0:01:03]} e5 {[%emt 0:00:00]} 21. Bxc4 {[%emt 0:05:43]} Rxe4 {[%emt 0:00:06]} 22. Rab1 {[%emt 0:05:23]} Rexc4+ {[%emt 0:00:54]} 23. Kb3 {[%emt 0:00:14]} Rc3+ {[%emt 0:00:26]} 24. Kb4 {[%emt 0:01:18]} Rc2 {[%emt 0:00:28]} 25. Rd7 {[%emt 0:01:57]} Rxf2 {[%emt 0:00:13]} 26. Rxb7 {[%emt 0:00:13]} Rxa2 {[%emt 0:00:10]} 27. Kb3 {[%emt 0:03:10]} Rxg2 {[%emt 0:00:08]} 28. Rxa7 {[%emt 0:00:31]} Rb8+ {[%emt 0:00:05]} 0-1

[Event "Paul Keres Memorial-Youth 2020"]
[Site "Parnu"]
[Date "2020.07.30"]
[Round "2.6"]
[White "Kull, Tormi"]
[Black "Pedoson, Georg Aleksander"]
[Result "0-1"]
[ECO "B01"]
[WhiteElo "1559"]
[BlackElo "2189"]
[Annotator "ChessBase"]
[PlyCount "142"]
[EventDate "2020.07.27"]
[EventType "swiss"]
[EventCountry "EST"]
[SourceTitle "playchess.com"]
[Source "ChessBase"]
[SourceQuality "1"]
[TimeControl "40/5400+30:900+30"]

1. e4 {[%emt 0:29:32]} d5 {[%emt 0:31:22]} 2. exd5 {[%emt 0:00:14]} Qxd5 {[%emt 0:00:05]} 3. Nc3 {[%emt 0:00:19]} Qd6 {[%emt 0:00:05]} 4. Nf3 {[%emt 0:00:19]} Nf6 {[%emt 0:00:12]} 5. d3 {[%emt 0:01:43]} g6 {[%emt 0:01:18]} 6. g3 {[%emt 0:00:18]} Bg7 {[%emt 0:01:58]} 7. Bg2 {[%emt 0:00:13]} O-O {[%emt 0:02:22]} 8. O-O {[%emt 0:00:19]} Nc6 {[%emt 0:01:12]} 9. Re1 {[%emt 0:03:19]} Bf5 {[%emt 0:02:50]} 10. Bf4 {[%emt 0:02:00]} Qd7 {[%emt 0:00:25]} 11. Qe2 {[%emt 0:03:32]} Rfe8 {[%emt 0:04:02]} 12. Qd2 {[%emt 0:15:16]} Rad8 {[%emt 0:02:59]} 13. Rad1 {[%emt 0:01:13]} Bg4 {[%emt 0:01:17]} 14. Rb1 {[%emt 0:02:37]} Qc8 {[%emt 0:02:44]} 15. Ne5 {[%emt 0:02:52]} Nxe5 {[%emt 0:00:17]} 16. Bxe5 {[%emt 0:00:07]} c6 {[%emt 0:00:11]} 17. b4 {[%emt 0:00:19]} b5 {[%emt 0:23:08]} 18. a4 {[%emt 0:00:42]} a6 {[%emt 0:00:04]} 19. f4 {[%emt 0:05:18]} Qd7 {[%emt 0:07:18]} 20. axb5 {[%emt 0:06:17]} axb5 {[%emt 0:00:14]} 21. Ra1 {[%emt 0:01:03]} Bh3 {[%emt 0:01:41]} 22. Bf3 {[%emt 0:00:45]} Bg4 {[%emt 0:00:45]} 23. Bg2 {[%emt 0:00:08]} Bh3 {[%emt 0:00:23]} 24. Bf3 {[%emt 0:00:13]} Ng4 {[%emt 0:00:10]} 25. Bxg4 {[%emt 0:01:32]} Bxg4 {[%emt 0:00:14]} 26. Bxg7 {[%emt 0:00:54]} Kxg7 {[%emt 0:00:05]} 27. Ne4 {[%emt 0:04:29]} Qd4+ {[%emt 0:00:55]} 28. Nf2 {[%emt 0:00:15]} Bf5 {[%emt 0:04:30]} 29. c3 {[%emt 0:03:37]} Qd5 {[%emt 0:00:58]} 30. d4 {[%emt 0:00:20]} Ra8 {[%emt 0:00:28]} 31. g4 {[%emt 0:06:01]} Be6 {[%emt 0:01:43]} 32. Qe3 {[%emt 0:00:36]} h6 {[%emt 0:00:35]} 33. h3 {[%emt 0:02:23]} Qd8 {[%emt 0:05:26]} 34. Qe5+ {[%emt 0:00:29]} Kh7 {[%emt 0:00:26]} 35. Rxa8 {[%emt 0:03:57]} Qxa8 {[%emt 0:00:03]} 36. Ne4 {[%emt 0:00:26]} Qa2 {[%emt 0:00:43]} 37. Nc5 {[%emt 0:01:19]} Bd5 {[%emt 0:00:11]} 38. Qe2 {[%emt 0:00:20]} Qa3 {[%emt 0:00:55]} 39. Qd2 {[%emt 0:00:33]} Qa7 {[%emt 0:00:55]} 40. Ne4 {[%emt 0:00:00]} Ra8 {[%emt 0:00:00]} 41. Nf2 {[%emt 0:04:11]} Qc7 {[%emt 0:02:13]} 42. Qe3 {[%emt 0:00:42]} Ra3 {[%emt 0:00:22]} 43. f5 {[%emt 0:00:40]} g5 {[%emt 0:01:12]} 44. Qd3 {[%emt 0:03:18]} Kg7 {[%emt 0:00:44]} 45. Ne4 {[%emt 0:03:05]} Qf4 {[%emt 0:00:18]} 46. Ng3 {[%emt 0:00:22]} Kg8 {[%emt 0:01:46]} 47. Nh5 {[%emt 0:00:18]} Qd6 {[%emt 0:00:20]} 48. Qe3 {[%emt 0:00:40]} Ra2 {[%emt 0:01:01]} 49. Qe5 {[%emt 0:01:08]} Qxe5 {[%emt 0:00:15]} 50. Rxe5 {[%emt 0:00:42]} Kf8 {[%emt 0:00:10]} 51. Re3 {[%emt 0:00:28]} f6 {[%emt 0:00:37]} 52. Ng3 {[%emt 0:00:37]} Rc2 {[%emt 0:01:43]} 53. Ne2 {[%emt 0:01:21]} Ke8 {[%emt 0:01:13]} 54. Ng3 {[%emt 0:01:29]} Bg2 {[%emt 0:01:25]} 55. Ne2 {[%emt 0:00:21]} Bxh3 {[%emt 0:00:22]} 56. Rxh3 {[%emt 0:00:29]} Rxe2 {[%emt 0:00:04]} 57. Kf1 {[%emt 0:00:18]} Re4 {[%emt 0:00:20]} 58. Rg3 {[%emt 0:00:25]} Kd7 {[%emt 0:00:36]} 59. Kf2 {[%emt 0:00:19]} Kd6 {[%emt 0:00:13]} 60. Kf3 {[%emt 0:00:34]} Rf4+ {[%emt 0:00:03]} 61. Ke3 {[%emt 0:00:08]} h5 {[%emt 0:00:30]} 62. gxh5 {[%emt 0:00:07]} Rh4 {[%emt 0:00:06]} 63. Rf3 {[%emt 0:00:29]} Rxh5 {[%emt 0:00:05]} 64. Ke4 {[%emt 0:00:20]} Rh4+ {[%emt 0:00:05]} 65. Kd3 {[%emt 0:00:09]} Rh2 {[%emt 0:04:49]} 66. Rg3 {[%emt 0:00:26]} Rf2 {[%emt 0:00:08]} 67. Ke4 {[%emt 0:00:51]} Rf4+ {[%emt 0:00:04]} 68. Kd3 {[%emt 0:01:14]} Rxf5 {[%emt 0:00:02]} 69. Re3 {[%emt 0:00:22]} e6 {[%emt 0:00:07]} 70. Rh3 {[%emt 0:00:16]} Kd5 {[%emt 0:00:14]} 71. Re3 {[%emt 0:00:21]} g4 {[%emt 0:00:04]} 0-1

[Event "Paul Keres Memorial-Youth 2020"]
[Site "Parnu"]
[Date "2020.07.30"]
[Round "2.7"]
[White "Aga, Rihard"]
[Black "Kokk, Karl Mattias"]
[Result "0-1"]
[ECO "E81"]
[WhiteElo "2022"]
[BlackElo "1492"]
[Annotator "ChessBase"]
[PlyCount "90"]
[EventDate "2020.07.27"]
[EventType "swiss"]
[EventCountry "EST"]
[SourceTitle "playchess.com"]
[Source "ChessBase"]
[SourceQuality "1"]
[TimeControl "40/5400+30:900+30"]

1. d4 {[%emt 0:29:33]} Nf6 {[%emt 0:29:55]} 2. c4 {[%emt 0:00:04]} g6 {[%emt 0:00:26]} 3. Nc3 {[%emt 0:00:04]} Bg7 {[%emt 0:00:19]} 4. e4 {[%emt 0:00:05]} d6 {[%emt 0:00:51]} 5. f3 {[%emt 0:00:04]} Nbd7 {[%emt 0:04:02]} 6. Be3 {[%emt 0:00:14]} c5 {[%emt 0:00:45]} 7. Nge2 {[%emt 0:00:45]} O-O {[%emt 0:01:51]} 8. Qd2 {[%emt 0:00:09]} a6 {[%emt 0:03:17]} 9. g4 {[%emt 0:03:19]} h5 {[%emt 0:09:04]} 10. gxh5 {[%emt 0:00:26]} Nxh5 {[%emt 0:01:29]} 11. Ng3 {[%emt 0:02:49]} cxd4 {[%emt 0:03:18]} 12. Bxd4 {[%emt 0:00:17]} Bxd4 {[%emt 0:09:34]} 13. Qxd4 {[%emt 0:02:02]} Qa5 {[%emt 0:04:32]} 14. O-O-O {[%emt 0:04:07]} Ndf6 {[%emt 0:03:49]} 15. Nd5 {[%emt 0:02:00]} Qxa2 {[%emt 0:04:23]} 16. Nxe7+ {[%emt 0:01:42]} Kh7 {[%emt 0:00:39]} 17. Qxd6 {[%emt 0:02:07]} Be6 {[%emt 0:08:04]} 18. Qd4 {[%emt 0:06:23]} Qa1+ {[%emt 0:01:51]} 19. Kc2 {[%emt 0:00:42]} Qa4+ {[%emt 0:02:37]} 20. Kb1 {[%emt 0:02:13]} b5 {[%emt 0:02:38]} 21. e5 {[%emt 0:03:25]} Rfd8 {[%emt 0:02:15]} 22. Qxd8 {[%emt 0:00:55]} Rxd8 {[%emt 0:00:05]} 23. Rxd8 {[%emt 0:00:09]} Nd7 {[%emt 0:00:39]} 24. Bd3 {[%emt 0:01:16]} Nf4 {[%emt 0:00:40]} 25. Bc2 {[%emt 0:04:02]} Qxc4 {[%emt 0:00:33]} 26. b3 {[%emt 0:04:43]} Qb4 {[%emt 0:00:38]} 27. Nxg6 {[%emt 0:03:37]} fxg6 {[%emt 0:00:13]} 28. Ne4 {[%emt 0:00:18]} Nh3 {[%emt 0:02:14]} 29. Rd1 {[%emt 0:00:44]} Nxe5 {[%emt 0:00:32]} 30. R8d4 {[%emt 0:02:57]} Qa3 {[%emt 0:00:27]} 31. Nf6+ {[%emt 0:01:55]} Kh6 {[%emt 0:00:31]} 32. Nd5 {[%emt 0:01:33]} Nc6 {[%emt 0:00:30]} 33. Re4 {[%emt 0:03:50]} Bf5 {[%emt 0:00:51]} 34. Re3 {[%emt 0:01:50]} Nf2 {[%emt 0:01:54]} 35. Rd2 {[%emt 0:01:17]} Bxc2+ {[%emt 0:00:41]} 36. Rxc2 {[%emt 0:00:23]} Qd6 {[%emt 0:00:44]} 37. Nc3 {[%emt 0:03:50]} Nd1 {[%emt 0:00:11]} 38. Nxd1 {[%emt 0:02:10]} Qxd1+ {[%emt 0:00:06]} 39. Rc1 {[%emt 0:00:06]} Qd4 {[%emt 0:00:17]} 40. Rce1 {[%emt 0:00:00]} a5 {[%emt 0:00:00]} 41. R1e2 {[%emt 0:02:34]} Nb4 {[%emt 0:01:18]} 42. h4 {[%emt 0:00:21]} Nd5 {[%emt 0:00:35]} 43. Re4 {[%emt 0:00:23]} Nc3+ {[%emt 0:00:22]} 44. Kc2 {[%emt 0:00:06]} Nxe4 {[%emt 0:00:15]} 45. Rxe4 {[%emt 0:00:09]} Qf2+ {[%emt 0:00:21]} 0-1

[Event "Paul Keres Memorial-Youth 2020"]
[Site "Parnu"]
[Date "2020.07.30"]
[Round "2.8"]
[White "Smirnova, Jekaterina"]
[Black "Andrijashkin, Deniss"]
[Result "0-1"]
[ECO "E93"]
[WhiteElo "1445"]
[BlackElo "1850"]
[Annotator "NA"]
[PlyCount "58"]
[EventDate "2020.07.27"]
[EventType "swiss"]
[EventCountry "EST"]
[SourceTitle "playchess.com"]
[Source "ChessBase"]
[SourceQuality "1"]
[TimeControl "40/5400+30:900+30"]

1. c4 {[%emt 0:29:32]} g6 {[%emt 0:29:36]} 2. Nc3 {[%emt 0:00:08]} Bg7 {[%emt 0:00:07]} 3. d4 {[%emt 0:01:33]} d6 {[%emt 0:00:29]} 4. e4 {[%emt 0:00:22]} Nf6 {[%emt 0:13:07]} 5. Nf3 {[%emt 0:00:09]} O-O {[%emt 0:00:05]} 6. Be2 {[%emt 0:00:16]} Nbd7 {[%emt 0:05:46]} 7. Be3 {[%emt 0:00:56]} e5 {[%emt 0:00:25]} 8. d5 {[%emt 0:00:08]} a5 {[%emt 0:02:52]} 9. h3 {[%emt 0:00:12]} Nc5 {[%emt 0:03:49]} 10. Bxc5 {[%emt 0:05:35]} dxc5 {[%emt 0:00:11]} 11. O-O {[%emt 0:03:52]} Ne8 {[%emt 0:03:54]} 12. Ne1 {[%emt 0:05:19]} Nd6 {[%emt 0:00:40]} 13. f4 {[%emt 0:10:35]} f5 {[%emt 0:15:13]} 14. fxe5 {[%emt 0:01:07]} Bxe5 {[%emt 0:00:10]} 15. exf5 {[%emt 0:01:10]} Nxf5 {[%emt 0:00:52]} 16. Nc2 {[%emt 0:01:23]} Qh4 {[%emt 0:04:32]} 17. Qd3 {[%emt 0:02:59]} Bd7 {[%emt 0:07:15]} 18. Bg4 {[%emt 0:06:08]} h5 {[%emt 0:04:39]} 19. Be2 {[%emt 0:02:06]} Rae8 {[%emt 0:01:12]} 20. Rae1 {[%emt 0:01:40]} Bg3 {[%emt 0:00:32]} 21. Rb1 {[%emt 0:01:39]} Kh7 {[%emt 0:00:49]} 22. Bf3 {[%emt 0:01:27]} Nd4 {[%emt 0:03:20]} 23. Nxd4 {[%emt 0:00:28]} cxd4 {[%emt 0:00:03]} 24. Ne4 {[%emt 0:01:13]} Bf5 {[%emt 0:00:30]} 25. Qxd4 {[%emt 0:01:12]} Bxe4 {[%emt 0:01:15]} 26. Bxe4 {[%emt 0:00:17]} Rxe4 {[%emt 0:00:13]} 27. Qc5 {[%emt 0:01:52]} Bd6 {[%emt 0:00:29]} 28. Qxa5 {[%emt 0:00:25]} Rxf1+ {[%emt 0:00:31]} 29. Rxf1 {[%emt 0:00:09]} Qg3 {[%emt 0:00:25]} 0-1

[Event "Paul Keres Memorial-Youth 2020"]
[Site "Parnu"]
[Date "2020.07.30"]
[Round "2.9"]
[White "Golsta, Madara"]
[Black "Shadrina, Eva"]
[Result "1-0"]
[ECO "B33"]
[WhiteElo "1903"]
[BlackElo "1234"]
[Annotator "ChessBase"]
[PlyCount "83"]
[EventDate "2020.07.27"]
[EventType "swiss"]
[EventCountry "EST"]
[SourceTitle "playchess.com"]
[Source "ChessBase"]
[SourceQuality "1"]
[TimeControl "40/5400+30:900+30"]

1. e4 {[%emt 0:29:32]} c5 {[%emt 0:29:38]} 2. Nf3 {[%emt 0:00:06]} Nc6 {[%emt 0:00:10]} 3. d4 {[%emt 0:00:10]} cxd4 {[%emt 0:00:08]} 4. Nxd4 {[%emt 0:00:05]} Nf6 {[%emt 0:00:17]} 5. Nc3 {[%emt 0:00:21]} e5 {[%emt 0:00:25]} 6. Ndb5 {[%emt 0:00:19]} d6 {[%emt 0:00:28]} 7. Nd5 {[%emt 0:00:15]} Nxd5 {[%emt 0:00:30]} 8. exd5 {[%emt 0:00:06]} Nb8 {[%emt 0:00:10]} 9. a4 {[%emt 0:00:55]} a6 {[%emt 0:07:05]} 10. Na3 {[%emt 0:00:30]} Be7 {[%emt 0:07:32]} 11. Be2 {[%emt 0:03:22]} O-O {[%emt 0:00:52]} 12. O-O {[%emt 0:01:41]} f5 {[%emt 0:01:39]} 13. f4 {[%emt 0:04:52]} e4 {[%emt 0:03:37]} 14. Be3 {[%emt 0:01:01]} Nd7 {[%emt 0:03:51]} 15. c4 {[%emt 0:07:35]} Bf6 {[%emt 0:04:06]} 16. Rb1 {[%emt 0:01:45]} b6 {[%emt 0:03:22]} 17. b4 {[%emt 0:08:57]} Qc7 {[%emt 0:03:02]} 18. Qb3 {[%emt 0:01:25]} Kh8 {[%emt 0:01:32]} 19. Rfc1 {[%emt 0:01:22]} h6 {[%emt 0:09:59]} 20. Kh1 {[%emt 0:03:05]} Kh7 {[%emt 0:05:06]} 21. Bg1 {[%emt 0:04:45]} Rh8 {[%emt 0:03:52]} 22. Nc2 {[%emt 0:04:36]} Rb8 {[%emt 0:03:44]} 23. Qh3 {[%emt 0:03:20]} Nf8 {[%emt 0:01:31]} 24. Nd4 {[%emt 0:06:17]} Bxd4 {[%emt 0:01:00]} 25. Bxd4 {[%emt 0:00:04]} Ng6 {[%emt 0:01:50]} 26. Qg3 {[%emt 0:00:54]} Bd7 {[%emt 0:04:07]} 27. Bh5 {[%emt 0:01:07]} Be8 {[%emt 0:00:33]} 28. Rb3 {[%emt 0:07:14]} Bf7 {[%emt 0:02:13]} 29. Rcc3 {[%emt 0:00:46]} Qd7 {[%emt 0:00:36]} 30. Qf2 {[%emt 0:02:23]} b5 {[%emt 0:00:43]} 31. cxb5 {[%emt 0:01:58]} axb5 {[%emt 0:00:25]} 32. a5 {[%emt 0:00:03]} Rhc8 {[%emt 0:00:31]} 33. h3 {[%emt 0:02:12]} Rc4 {[%emt 0:00:51]} 34. Rg3 {[%emt 0:00:33]} Rc1+ {[%emt 0:00:41]} 35. Kh2 {[%emt 0:00:05]} Rbc8 {[%emt 0:00:23]} 36. Rbc3 {[%emt 0:01:48]} R8xc3 {[%emt 0:00:22]} 37. Bxc3 {[%emt 0:00:29]} Qc8 {[%emt 0:00:20]} 38. Qd4 {[%emt 0:00:45]} Qf8 {[%emt 0:00:31]} 39. h4 {[%emt 0:00:46]} Rc2 {[%emt 0:00:50]} 40. Bxg6+ {[%emt 0:00:00]} Bxg6 {[%emt 0:00:00]} 41. h5 {[%emt 0:00:25]} Kh8 {[%emt 0:02:07]} 42. Rxg6 {[%emt 0:00:17]} 1-0

[Event "Paul Keres Memorial-Youth 2020"]
[Site "Parnu"]
[Date "2020.07.30"]
[Round "3.6"]
[White "Pedoson, Georg Aleksander"]
[Black "Olde, Karl Erik"]
[Result "1-0"]
[ECO "D35"]
[WhiteElo "2189"]
[BlackElo "1751"]
[Annotator "ChessBase"]
[PlyCount "133"]
[EventDate "2020.07.27"]
[EventType "swiss"]
[EventCountry "EST"]
[SourceTitle "playchess.com"]
[Source "ChessBase"]
[SourceQuality "1"]
[TimeControl "40/5400+30:900+30"]

1. d4 {[%emt 0:29:32]} d5 {[%emt 0:29:45]} 2. c4 {[%emt 0:00:13]} e6 {[%emt 0:00:17]} 3. Nc3 {[%emt 0:00:05]} Nf6 {[%emt 0:00:07]} 4. cxd5 {[%emt 0:00:13]} exd5 {[%emt 0:00:32]} 5. Bg5 {[%emt 0:00:11]} Be7 {[%emt 0:01:40]} 6. e3 {[%emt 0:00:29]} O-O {[%emt 0:02:58]} 7. Bd3 {[%emt 0:00:04]} c6 {[%emt 0:02:04]} 8. Nge2 {[%emt 0:01:51]} Nbd7 {[%emt 0:05:25]} 9. Ng3 {[%emt 0:07:34]} g6 {[%emt 0:03:16]} 10. h4 {[%emt 0:06:17]} h5 {[%emt 0:01:52]} 11. Qc2 {[%emt 0:01:26]} Kg7 {[%emt 0:03:02]} 12. Nce2 {[%emt 0:03:16]} Re8 {[%emt 0:02:59]} 13. Nf4 {[%emt 0:02:10]} Nf8 {[%emt 0:02:25]} 14. O-O-O {[%emt 0:01:45]} Ne4 {[%emt 0:03:25]} 15. Bxe4 {[%emt 0:12:20]} dxe4 {[%emt 0:00:27]} 16. d5 {[%emt 0:04:21]} Bg4 {[%emt 0:05:39]} 17. Qc3+ {[%emt 0:02:00]} Bf6 {[%emt 0:01:22]} 18. Bxf6+ {[%emt 0:00:51]} Qxf6 {[%emt 0:00:04]} 19. Qxf6+ {[%emt 0:00:04]} Kxf6 {[%emt 0:00:12]} 20. Rd4 {[%emt 0:00:04]} cxd5 {[%emt 0:04:24]} 21. Nxd5+ {[%emt 0:00:08]} Kg7 {[%emt 0:02:46]} 22. Rxe4 {[%emt 0:00:27]} Rac8+ {[%emt 0:01:42]} 23. Nc3 {[%emt 0:00:03]} Red8 {[%emt 0:02:57]} 24. f3 {[%emt 0:01:17]} Be6 {[%emt 0:00:03]} 25. Rd1 {[%emt 0:00:15]} Rxd1+ {[%emt 0:01:57]} 26. Kxd1 {[%emt 0:00:06]} Nd7 {[%emt 0:00:05]} 27. Kd2 {[%emt 0:03:36]} Nb6 {[%emt 0:01:31]} 28. b3 {[%emt 0:01:39]} Nd5 {[%emt 0:05:22]} 29. Nxd5 {[%emt 0:00:08]} Bxd5 {[%emt 0:00:01]} 30. Rd4 {[%emt 0:00:13]} Be6 {[%emt 0:00:10]} 31. Ne4 {[%emt 0:00:22]} Bf5 {[%emt 0:02:12]} 32. Nc3 {[%emt 0:00:04]} Rc6 {[%emt 0:00:24]} 33. e4 {[%emt 0:06:19]} Be6 {[%emt 0:00:05]} 34. g3 {[%emt 0:01:50]} Rc5 {[%emt 0:02:39]} 35. b4 {[%emt 0:07:56]} Rc6 {[%emt 0:01:37]} 36. a4 {[%emt 0:00:06]} Kf6 {[%emt 0:02:32]} 37. f4 {[%emt 0:06:47]} Ke7 {[%emt 0:02:50]} 38. b5 {[%emt 0:02:02]} Rc5 {[%emt 0:00:27]} 39. Nd1 {[%emt 0:00:14]} Rc7 {[%emt 0:04:31]} 40. Ne3 {[%emt 0:00:00]} Rc5 {[%emt 0:00:00]} 41. Rd3 {[%emt 0:02:14]} Rc8 {[%emt 0:04:13]} 42. Rc3 {[%emt 0:01:08]} Rd8+ {[%emt 0:00:28]} 43. Ke2 {[%emt 0:04:05]} Rd4 {[%emt 0:00:52]} 44. a5 {[%emt 0:00:04]} Ra4 {[%emt 0:04:15]} 45. Rc7+ {[%emt 0:01:58]} Kf6 {[%emt 0:00:09]} 46. Rxb7 {[%emt 0:05:52]} Rxa5 {[%emt 0:00:03]} 47. Nd5+ {[%emt 0:00:12]} Bxd5 {[%emt 0:02:21]} 48. exd5 {[%emt 0:00:04]} a6 {[%emt 0:01:29]} 49. Rb6+ {[%emt 0:00:19]} Ke7 {[%emt 0:01:18]} 50. d6+ {[%emt 0:00:17]} Ke6 {[%emt 0:02:49]} 51. bxa6 {[%emt 0:00:24]} Ra3 {[%emt 0:00:10]} 52. Kd2 {[%emt 0:03:55]} Rxg3 {[%emt 0:00:59]} 53. Kc2 {[%emt 0:00:03]} Ra3 {[%emt 0:01:43]} 54. Kb2 {[%emt 0:00:03]} Ra5 {[%emt 0:00:16]} 55. Kb3 {[%emt 0:00:03]} Ra1 {[%emt 0:00:13]} 56. Kb4 {[%emt 0:00:17]} Kd7 {[%emt 0:01:34]} 57. Kb5 {[%emt 0:00:10]} f6 {[%emt 0:01:20]} 58. Rb7+ {[%emt 0:00:42]} Kxd6 {[%emt 0:00:04]} 59. Kb6 {[%emt 0:00:05]} Ke6 {[%emt 0:01:27]} 60. Ka7 {[%emt 0:02:47]} Kf5 {[%emt 0:00:40]} 61. Rb6 {[%emt 0:00:03]} g5 {[%emt 0:01:24]} 62. fxg5 {[%emt 0:00:23]} fxg5 {[%emt 0:00:14]} 63. Rb5+ {[%emt 0:00:10]} Kg4 {[%emt 0:02:03]} 64. hxg5 {[%emt 0:00:11]} Re1 {[%emt 0:00:33]} 65. g6 {[%emt 0:01:09]} Re6 {[%emt 0:00:35]} 66. g7 {[%emt 0:00:48]} Re7+ {[%emt 0:00:31]} 67. Rb7 {[%emt 0:00:21]} 1-0

[Event "Paul Keres Memorial-Youth 2020"]
[Site "Parnu"]
[Date "2020.07.30"]
[Round "3.7"]
[White "Andrijashkin, Deniss"]
[Black "Raag, Ardi"]
[Result "1/2-1/2"]
[ECO "C90"]
[WhiteElo "1850"]
[BlackElo "1729"]
[Annotator "NA"]
[PlyCount "67"]
[EventDate "2020.07.27"]
[EventType "swiss"]
[EventCountry "EST"]
[SourceTitle "playchess.com"]
[Source "ChessBase"]
[SourceQuality "1"]
[TimeControl "40/5400+30:900+30"]

1. e4 {[%emt 0:29:32]} e5 {[%emt 0:29:37]} 2. Nf3 {[%emt 0:00:03]} Nc6 {[%emt 0:00:06]} 3. Bb5 {[%emt 0:00:05]} a6 {[%emt 0:00:06]} 4. Ba4 {[%emt 0:00:01]} Nf6 {[%emt 0:00:07]} 5. d3 {[%emt 0:00:03]} b5 {[%emt 0:00:19]} 6. Bb3 {[%emt 0:00:06]} Be7 {[%emt 0:00:09]} 7. O-O {[%emt 0:00:18]} d6 {[%emt 0:00:23]} 8. c3 {[%emt 0:00:04]} O-O {[%emt 0:00:10]} 9. Re1 {[%emt 0:01:48]} Rb8 {[%emt 0:00:07]} 10. Nbd2 {[%emt 0:06:25]} Na5 {[%emt 0:00:18]} 11. Bc2 {[%emt 0:00:12]} c5 {[%emt 0:00:08]} 12. Nf1 {[%emt 0:04:36]} Re8 {[%emt 0:00:15]} 13. Ng3 {[%emt 0:01:53]} Nc6 {[%emt 0:00:16]} 14. h3 {[%emt 0:03:35]} Bf8 {[%emt 0:01:26]} 15. d4 {[%emt 0:03:59]} cxd4 {[%emt 0:04:42]} 16. cxd4 {[%emt 0:00:07]} exd4 {[%emt 0:00:39]} 17. Nxd4 {[%emt 0:00:09]} Nxd4 {[%emt 0:00:08]} 18. Qxd4 {[%emt 0:00:10]} g6 {[%emt 0:02:22]} 19. Bf4 {[%emt 0:09:01]} Rb7 {[%emt 0:08:55]} 20. Rad1 {[%emt 0:05:26]} Rd7 {[%emt 0:00:52]} 21. a4 {[%emt 0:10:43]} Bg7 {[%emt 0:21:15]} 22. Qb4 {[%emt 0:02:05]} Bf8 {[%emt 0:04:28]} 23. Qb3 {[%emt 0:04:05]} Qb6 {[%emt 0:05:54]} 24. axb5 {[%emt 0:02:10]} axb5 {[%emt 0:00:42]} 25. Be3 {[%emt 0:03:29]} Qc6 {[%emt 0:03:34]} 26. Rc1 {[%emt 0:01:36]} Rb7 {[%emt 0:03:04]} 27. Bd4 {[%emt 0:04:18]} Nd7 {[%emt 0:05:13]} 28. Nh5 {[%emt 0:04:12]} Qc4 {[%emt 0:02:38]} 29. Qxc4 {[%emt 0:03:34]} bxc4 {[%emt 0:00:01]} 30. Nf6+ {[%emt 0:00:22]} Nxf6 {[%emt 0:00:02]} 31. Bxf6 {[%emt 0:00:01]} Bd7 {[%emt 0:02:53]} 32. Ra1 {[%emt 0:00:56]} Bg7 {[%emt 0:00:34]} 33. Bxg7 {[%emt 0:00:04]} Kxg7 {[%emt 0:00:05]} 34. Ba4 {[%emt 0:00:22]} 1/2-1/2